Workbook

Sheet Waterfall
A2: Notes | E2: Loss Experience | N2: Reserve Account | Q2: Principal Paydown
A3: Balance | B3: 430573330 | E3: Scaling Factor | G3: 1 | N3: Initial | O3: 0 | Q3: ABS Rate | R3: 0.014
A4: Coupon | B4: 0.03 | E4: Recovery Percent | G4: 0.5 | N4: Required | O4: 1000000 | Q4: Scheduled | R4: =Y9 -> 283513114.6
A5: Serv Fee | B5: 0.005 | E5: Lag (months) | G5: 6 | Q5: Prepayments | R5: =Z9 -> 129056723
A6: Ending Balance | B6: 0 | E6: Loss to Liquidation | G6: =AC9/B3 -> 0.04181283695 | N6: XS Release | O6: =AT9 -> 20640504.38 | Q6: Defaults | R6: =AC9 -> 18003492.44
A7: Interest Shortfall | B7: =SUM(W13:W82) -> 0 | Q7: Total | R7: =R4+R5+R6 -> 430573330
A8: Serv Fee Shortfall | B8: =R9 -> 0
F9: =SUM(F13:F72) -> 0.0845 | G9: =SUM(G13:G72) -> 0.0845 | K9: =SUM(K13:K82) -> 283513114.6 | P9: =SUM(P13:P82) -> 3160697.692 | Q9: 3160697.692 | R9: 0 | S9: 58608182.98 | T9: 18964186.15 | U9: 58608182.98 | V9: 18964186.15 | W9: 0 | X9: 39643996.83 | Y9: 283513114.6 | Z9: 129056723 | AA9: 412569837.6 | AC9: =SUM(AC13:AC82) -> 18003492.44 | AJ9: =SUM(AJ13:AJ82) -> 18003492.44 | AK9: =SUM(AK13:AK82) -> 0 | AQ9: =SUM(AQ13:AQ82) -> 22224612.55 | AR9: =SUM(AR13:AR82) -> 1584108.164 | AT9: =SUM(AT13:AT82) -> 20640504.38
B10: Collateral Cashflows | E10: Loss To Liquidation | P10: Servicing Fee | T10: Bond Amortization | AM10: Reserve Account
A11: Month | B11: Principal | C11: Interest | E11: Cumulative | F11: Monthly | G11: Scaled | I11: SMM | J11: Adjusted Balance | K11: Adjusted Principal | L11: Adjusted Interest | N11: Month | O11: Open Bal | P11: Servicing Fee Due | Q11: Servicing Fee Paid | R11: Servicing Fee Shortfall | S11: Cash Available | T11: Int Due | U11: Cash Available | V11: Int Paid | W11: Interest Shortfall | X11: Cash Available | Y11: Scheduled Principal | Z11: Prepaid Principal | AA11: Principal Paid | AB11: End Bal | AC11: Defaulted Principal | AD11: Available Cash | AE11: Default Covered By Avail Cash | AF11: Available Cash | AG11: Uncovered Defaults | AH11: Reserve Account | AI11: Covered by Reserve Account | AJ11: Covered Defaults | AK11: Uncovered | AL11: Ending Balance | AM11: Open Balance | AN11: Drawn | AO11: Balance After Draw | AP11: Required | AQ11: Cash Available | AR11: Top-Up | AS11: Ending Balance | AT11: XS Release
J12: 1
A13: 1 | B13: 9760926.401 | C13: 3510373.607 | E13: 0 | F13: - | G13: 0 | I13: =$R$3/(1-$R$3*(A13-1)) -> 0.014 | J13: =J12*(1-I13)*(1-G13) -> 0.986 | K13: =B13*J12 -> 9760926.401 | L13: =C13*J12 -> 3510373.607 | N13: 1 | O13: =B3 -> 430573330 | P13: =O13*ServicingFee/12 -> 179405.5542 | Q13: =MIN(P13,L13) -> 179405.5542 | R13: =P13-Q13 -> 0 | S13: =L13-Q13 -> 3330968.053 | T13: =O13*(Coupon/12) -> 1076433.325 | U13: =S13 -> 3330968.053 | V13: =MIN(T13,U13) -> 1076433.325 | W13: =T13-V13 -> 0 | X13: =MAX(0,U13-V13) -> 2254534.728 | Y13: =K13 -> 9760926.401 | Z13: =MAX(0,(O13-Y13)*I13) -> 5891373.65 | AA13: =Y13+Z13 -> 15652300.05 | AB13: =MAX(0,O13-AA13) -> 414921029.9 | AC13: =AB13*G13 -> 0 | AD13: =X13 -> 2254534.728 | AE13: =MIN(AC13,AD13) -> 0 | AF13: =AD13-AE13 -> 2254534.728 | AG13: =AC13-AE13 -> 0 | AH13: =AM13 -> 0 | AI13: =MIN(AG13,AH12) -> 0 | AJ13: =AC13-AK13 -> 0 | AK13: =AG13-AI13 -> 0 | AL13: =AB13-AJ13 -> 414921029.9 | AM13: =J3 -> 0 | AN13: =AI13 -> 0 | AO13: =AM13-AN13 -> 0 | AP13: =$O$4 -> 1000000 | AQ13: =AF13 -> 2254534.728 | AR13: =MIN(AP13-AO13,AQ13) -> 1000000 | AS13: =AO13+AR13 -> 1000000 | AT13: =AQ13-AR13 -> 1254534.728
A14: 2 | B14: 9840256.919 | C14: 3431043.089 | E14: 0.0002 | F14: =ABS(E14-E13) -> 0.0002 | G14: =ABS(E13-E14) -> 0.0002 | I14: =$R$3/(1-$R$3*(A14-1)) -> 0.01419878296 | J14: =J13*(1-I14)*(1-G14) -> 0.9718056 | K14: =B14*J13 -> 9702493.322 | L14: =C14*J13 -> 3383008.485 | N14: 2 | O14: =AL13 -> 414921029.9 | P14: =O14*ServicingFee/12 -> 172883.7625 | Q14: =MIN(P14,L14) -> 172883.7625 | R14: 0 | S14: =L14-Q14 -> 3210124.723 | T14: =O14*(Coupon/12) -> 1037302.575 | U14: =S14 -> 3210124.723 | V14: =MIN(T14,U14) -> 1037302.575 | W14: =T14-V14 -> 0 | X14: =MAX(0,U14-V14) -> 2172822.148 | Y14: =K14 -> 9702493.322 | Z14: =MAX(0,(O14-Y14)*I14) -> 5753610.054 | AA14: =Y14+Z14 -> 15456103.38 | AB14: =MAX(0,O14-AA14) -> 399464926.6 | AC14: =AB14*G14 -> 79892.98531 | AD14: =X14 -> 2172822.148 | AE14: =MIN(AC14,AD14) -> 79892.98531 | AF14: =AD14-AE14 -> 2092929.163 | AG14: =AC14-AE14 -> 0 | AH14: =AM14 -> 1000000 | AI14: =MIN(AG14,AH13) -> 0 | AJ14: 79892.98531 | AK14: 0 | AL14: =AB14-AJ14 -> 399385033.6 | AM14: =AS13 -> 1000000 | AN14: =AI14 -> 0 | AO14: =AM14-AN14 -> 1000000 | AP14: =$O$4 -> 1000000 | AQ14: =AF14 -> 2092929.163 | AR14: =MIN(AP14-AO14,AQ14) -> 0 | AS14: =AO14+AR14 -> 1000000 | AT14: =AQ14-AR14 -> 2092929.163
A15: 3 | B15: 9901632.146 | C15: 3351040.703 | E15: 0.0006 | F15: =ABS(E15-E14) -> 0.0004 | G15: =ABS(E14-E15) -> 0.0004 | I15: =$R$3/(1-$R$3*(A15-1)) -> 0.01440329218 | J15: 0.9574252766 | K15: 9622461.569 | L15: 3256560.121 | N15: 3 | O15: =AL14 -> 399385033.6 | P15: 166410.4307 | Q15: 166410.4307 | R15: 0 | S15: 3090149.69 | T15: 998462.584 | U15: 3090149.69 | V15: 998462.584 | W15: 0 | X15: 2091687.106 | Y15: 9622461.569 | Z15: 5613864.206 | AA15: 15236325.77 | AB15: 384148707.8 | AC15: 153659.4831 | AD15: 2091687.106 | AE15: 153659.4831 | AF15: 1938027.623 | AG15: 0 | AH15: 1000000 | AI15: 0 | AJ15: 153659.4831 | AK15: 0 | AL15: 383995048.3 | AM15: =AS14 -> 1000000 | AN15: 0 | AO15: 1000000 | AP15: 1000000 | AQ15: 1938027.623 | AR15: 0 | AS15: 1000000 | AT15: 1938027.623
A16: 4 | B16: 9945754.407 | C16: 3270493.547 | E16: 0.0008 | F16: 0.0002 | G16: 0.0002 | I16: 0.01461377871 | J16: 0.9432449888 | K16: 9522316.664 | L16: 3131253.189 | N16: 4 | O16: 383995048.3 | P16: 159997.9368 | Q16: 159997.9368 | R16: 0 | S16: 2971255.253 | T16: 959987.6208 | U16: 2971255.253 | V16: 959987.6208 | W16: 0 | X16: 2011267.632 | Y16: 9522316.664 | Z16: 5472461.632 | AA16: 14994778.3 | AB16: 369000270 | AC16: 73800.05401 | AD16: 2011267.632 | AE16: 73800.05401 | AF16: 1937467.578 | AG16: 0 | AH16: 1000000 | AI16: 0 | AJ16: 73800.05401 | AK16: 0 | AL16: 368926470 | AM16: 1000000 | AN16: 0 | AO16: 1000000 | AP16: 1000000 | AQ16: 1937467.578 | AR16: 0 | AS16: 1000000 | AT16: 1937467.578
A17: 5 | B17: 9972451.373 | C17: 3189531 | E17: 0.00355 | F17: 0.00275 | G17: 0.00275 | I17: 0.01483050847 | J17: 0.9267007315 | K17: 9406464.784 | L17: 3008509.132 | N17: 5 | O17: 368926470 | P17: 153719.3625 | Q17: 153719.3625 | R17: 0 | S17: 2854789.769 | T17: 922316.1749 | U17: 2854789.769 | V17: 922316.1749 | W17: 0 | X17: 1932473.594 | Y17: 9406464.784 | Z17: 5331864.484 | AA17: 14738329.27 | AB17: 354188140.7 | AC17: 974017.387 | AD17: 1932473.594 | AE17: 974017.387 | AF17: 958456.2075 | AG17: 0 | AH17: 1000000 | AI17: 0 | AJ17: 974017.387 | AK17: 0 | AL17: 353214123.3 | AM17: 1000000 | AN17: 0 | AO17: 1000000 | AP17: 1000000 | AQ17: 958456.2075 | AR17: 0 | AS17: 1000000 | AT17: 958456.2075
A18: 6 | B18: 10002255.35 | C18: 3108299.547 | E18: 0.00905 | F18: 0.0055 | G18: 0.0055 | I18: 0.01505376344 | J18: 0.9077302707 | K18: 9269097.351 | L18: 2880463.463 | N18: 6 | O18: 353214123.3 | P18: 147172.5514 | Q18: 147172.5514 | R18: 0 | S18: 2733290.912 | T18: 883035.3083 | U18: 2733290.912 | V18: 883035.3083 | W18: 0 | X18: 1850255.604 | Y18: 9269097.351 | Z18: 5177667.058 | AA18: 14446764.41 | AB18: 338767358.9 | AC18: 1863220.474 | AD18: 1850255.604 | AE18: 1850255.604 | AF18: 0 | AG18: 12964.87025 | AH18: 1000000 | AI18: 12964.87025 | AJ18: 1863220.474 | AK18: 0 | AL18: 336904138.4 | AM18: 1000000 | AN18: 12964.87025 | AO18: 987035.1298 | AP18: 1000000 | AQ18: 0 | AR18: 0 | AS18: 987035.1298 | AT18: 0
A19: 7 | B19: 10027511.28 | C19: 3026769.907 | E19: 0.0118 | F19: 0.00275 | G19: 0.00275 | I19: 0.01528384279 | J19: 0.8913985581 | K19: 9102275.529 | L19: 2747490.667 | N19: 7 | O19: 336904138.4 | P19: 140376.7244 | Q19: 140376.7244 | R19: 0 | S19: 2607113.943 | T19: 842260.3461 | U19: 2607113.943 | V19: 842260.3461 | W19: 0 | X19: 1764853.597 | Y19: 9102275.529 | Z19: 5010072.141 | AA19: 14112347.67 | AB19: 322791790.8 | AC19: 887677.4246 | AD19: 1764853.597 | AE19: 887677.4246 | AF19: 877176.1722 | AG19: 0 | AH19: 987035.1298 | AI19: 0 | AJ19: 887677.4246 | AK19: 0 | AL19: 321904113.3 | AM19: 987035.1298 | AN19: 0 | AO19: 987035.1298 | AP19: 1000000 | AQ19: 877176.1722 | AR19: 12964.87025 | AS19: 1000000 | AT19: 864211.302
A20: 8 | B20: 10054820.86 | C20: 2944977.514 | E20: 0.014725 | F20: 0.002925 | G20: 0.002925 | I20: 0.0155210643 | J20: 0.8749962317 | K20: 8962852.816 | L20: 2625148.71 | N20: 8 | O20: 321904113.3 | P20: 134126.7139 | Q20: 134126.7139 | R20: 0 | S20: 2491021.996 | T20: 804760.2834 | U20: 2491021.996 | V20: 804760.2834 | W20: 0 | X20: 1686261.713 | Y20: 8962852.816 | Z20: 4857181.427 | AA20: 13820034.24 | AB20: 308084079.1 | AC20: 901145.9314 | AD20: 1686261.713 | AE20: 901145.9314 | AF20: 785115.7813 | AG20: 0 | AH20: 1000000 | AI20: 0 | AJ20: 901145.9314 | AK20: 0 | AL20: 307182933.2 | AM20: 1000000 | AN20: 0 | AO20: 1000000 | AP20: 1000000 | AQ20: 785115.7813 | AR20: 0 | AS20: 1000000 | AT20: 785115.7813
A21: 9 | B21: 10076137.14 | C21: 2862934.679 | E21: 0.020575 | F21: 0.00585 | G21: 0.00585 | I21: 0.01576576577 | J21: 0.8561632188 | K21: 8816582.024 | L21: 2505057.056 | N21: 9 | O21: 307182933.2 | P21: 127992.8888 | Q21: 127992.8888 | R21: 0 | S21: 2377064.167 | T21: 767957.3329 | U21: 2377064.167 | V21: 767957.3329 | W21: 0 | X21: 1609106.834 | Y21: 8816582.024 | Z21: 4703974.005 | AA21: 13520556.03 | AB21: 293662377.1 | AC21: 1717924.906 | AD21: 1609106.834 | AE21: 1609106.834 | AF21: 0 | AG21: 108818.0722 | AH21: 1000000 | AI21: 108818.0722 | AJ21: 1717924.906 | AK21: 0 | AL21: 291944452.2 | AM21: 1000000 | AN21: 108818.0722 | AO21: 891181.9278 | AP21: 1000000 | AQ21: 0 | AR21: 0 | AS21: 891181.9278 | AT21: 0
A22: 10 | B22: 10108884.73 | C22: 2780690.339 | E22: 0.0235 | F22: 0.002925 | G22: 0.002925 | I22: 0.01601830664 | J22: 0.8399847707 | K22: 8654855.287 | L22: 2380724.791 | N22: 10 | O22: 291944452.2 | P22: 121643.5218 | Q22: 121643.5218 | R22: 0 | S22: 2259081.269 | T22: 729861.1306 | U22: 2259081.269 | V22: 729861.1306 | W22: 0 | X22: 1529220.138 | Y22: 8654855.287 | Z22: 4537819.631 | AA22: 13192674.92 | AB22: 278751777.3 | AC22: 815348.9487 | AD22: 1529220.138 | AE22: 815348.9487 | AF22: 713871.1897 | AG22: 0 | AH22: 891181.9278 | AI22: 0 | AJ22: 815348.9487 | AK22: 0 | AL22: 277936428.4 | AM22: 891181.9278 | AN22: 0 | AO22: 891181.9278 | AP22: 1000000 | AQ22: 713871.1897 | AR22: 108818.0722 | AS22: 1000000 | AT22: 605053.1175
A23: 11 | B23: 10136877.5 | C23: 2698155.739 | E23: 0.027 | F23: 0.0035 | G23: 0.0035 | I23: 0.01627906977 | J23: 0.8234185129 | K23: 8514822.726 | L23: 2266409.73 | N23: 11 | O23: 277936428.4 | P23: 115806.8452 | Q23: 115806.8452 | R23: 0 | S23: 2150602.884 | T23: 694841.0709 | U23: 2150602.884 | V23: 694841.0709 | W23: 0 | X23: 1455761.814 | Y23: 8514822.726 | Z23: 4385933.115 | AA23: 12900755.84 | AB23: 265035672.5 | AC23: 927624.8539 | AD23: 1455761.814 | AE23: 927624.8539 | AF23: 528136.9597 | AG23: 0 | AH23: 1000000 | AI23: 0 | AJ23: 927624.8539 | AK23: 0 | AL23: 264108047.7 | AM23: 1000000 | AN23: 0 | AO23: 1000000 | AP23: 1000000 | AQ23: 528136.9597 | AR23: 0 | AS23: 1000000 | AT23: 528136.9597
A24: 12 | B24: 10143912.51 | C24: 2615374.776 | E24: 0.034 | F24: 0.007 | G24: 0.007 | I24: 0.01654846336 | J24: 0.8041236564 | K24: 8352685.35 | L24: 2153548.009 | N24: 12 | O24: 264108047.7 | P24: 110045.0199 | Q24: 110045.0199 | R24: 0 | S24: 2043502.989 | T24: 660270.1192 | U24: 2043502.989 | V24: 660270.1192 | W24: 0 | X24: 1383232.87 | Y24: 8352685.35 | Z24: 4232358.242 | AA24: 12585043.59 | AB24: 251523004.1 | AC24: 1760661.029 | AD24: 1383232.87 | AE24: 1383232.87 | AF24: 0 | AG24: 377428.1587 | AH24: 1000000 | AI24: 377428.1587 | AJ24: 1760661.029 | AK24: 0 | AL24: 249762343.1 | AM24: 1000000 | AN24: 377428.1587 | AO24: 622571.8413 | AP24: 1000000 | AQ24: 0 | AR24: 0 | AS24: 622571.8413 | AT24: 0
A25: 13 | B25: 10147067.65 | C25: 2532537.528 | E25: 0.0375 | F25: 0.0035 | G25: 0.0035 | I25: 0.01682692308 | J25: 0.7878256549 | K25: 8159497.143 | L25: 2036473.337 | N25: 13 | O25: 249762343.1 | P25: 104067.6429 | Q25: 104067.6429 | R25: 0 | S25: 1932405.694 | T25: 624405.8576 | U25: 1932405.694 | V25: 624405.8576 | W25: 0 | X25: 1307999.837 | Y25: 8159497.143 | Z25: 4065432.503 | AA25: 12224929.65 | AB25: 237537413.4 | AC25: 831380.9469 | AD25: 1307999.837 | AE25: 831380.9469 | AF25: 476618.8898 | AG25: 0 | AH25: 622571.8413 | AI25: 0 | AJ25: 831380.9469 | AK25: 0 | AL25: 236706032.5 | AM25: 622571.8413 | AN25: 0 | AO25: 622571.8413 | AP25: 1000000 | AQ25: 476618.8898 | AR25: 377428.1587 | AS25: 1000000 | AT25: 99190.73107
A26: 14 | B26: 10144707 | C26: 2449665.325 | E26: 0.040375 | F26: 0.002875 | G26: 0.002875 | I26: 0.01711491443 | J26: 0.7721158528 | K26: 7992260.435 | L26: 1929909.189 | N26: 14 | O26: 236706032.5 | P26: 98627.51353 | Q26: 98627.51353 | R26: 0 | S26: 1831281.675 | T26: 591765.0812 | U26: 1831281.675 | V26: 591765.0812 | W26: 0 | X26: 1239516.594 | Y26: 7992260.435 | Z26: 3914416.636 | AA26: 11906677.07 | AB26: 224799355.4 | AC26: 646298.1468 | AD26: 1239516.594 | AE26: 646298.1468 | AF26: 593218.4473 | AG26: 0 | AH26: 1000000 | AI26: 0 | AJ26: 646298.1468 | AK26: 0 | AL26: 224153057.2 | AM26: 1000000 | AN26: 0 | AO26: 1000000 | AP26: 1000000 | AQ26: 593218.4473 | AR26: 0 | AS26: 1000000 | AT26: 593218.4473
A27: 15 | B27: 10141116.09 | C27: 2366798.797 | E27: 0.046125 | F27: 0.00575 | G27: 0.00575 | I27: 0.01741293532 | J27: 0.7543086908 | K27: 7830116.498 | L27: 1827442.872 | N27: 15 | O27: 224153057.2 | P27: 93397.10719 | Q27: 93397.10719 | R27: 0 | S27: 1734045.764 | T27: 560382.6431 | U27: 1734045.764 | V27: 560382.6431 | W27: 0 | X27: 1173663.121 | Y27: 7830116.498 | Z27: 3766817.376 | AA27: 11596933.87 | AB27: 212556123.4 | AC27: 1222197.709 | AD27: 1173663.121 | AE27: 1173663.121 | AF27: 0 | AG27: 48534.58801 | AH27: 1000000 | AI27: 48534.58801 | AJ27: 1222197.709 | AK27: 0 | AL27: 211333925.7 | AM27: 1000000 | AN27: 48534.58801 | AO27: 951465.412 | AP27: 1000000 | AQ27: 0 | AR27: 0 | AS27: 951465.412 | AT27: 0
A28: 16 | B28: 10128904.43 | C28: 2283966.279 | E28: 0.049 | F28: 0.002875 | G28: 0.002875 | I28: 0.01772151899 | J28: 0.7388109891 | K28: 7640320.637 | L28: 1722815.614 | N28: 16 | O28: 211333925.7 | P28: 88055.80236 | Q28: 88055.80236 | R28: 0 | S28: 1634759.811 | T28: 528334.8142 | U28: 1634759.811 | V28: 528334.8142 | W28: 0 | X28: 1106424.997 | Y28: 7640320.637 | Z28: 3609760.089 | AA28: 11250080.73 | AB28: 200083844.9 | AC28: 575241.0542 | AD28: 1106424.997 | AE28: 575241.0542 | AF28: 531183.943 | AG28: 0 | AH28: 951465.412 | AI28: 0 | AJ28: 575241.0542 | AK28: 0 | AL28: 199508603.9 | AM28: 951465.412 | AN28: 0 | AO28: 951465.412 | AP28: 1000000 | AQ28: 531183.943 | AR28: 48534.58801 | AS28: 1000000 | AT28: 482649.355
A29: 17 | B29: 10078389.45 | C29: 2201217.171 | E29: 0.051875 | F29: 0.002875 | G29: 0.002875 | I29: 0.01804123711 | J29: 0.7233961643 | K29: 7446024.876 | L29: 1626283.435 | N29: 17 | O29: 199508603.9 | P29: 83128.58495 | Q29: 83128.58495 | R29: 0 | S29: 1543154.85 | T29: 498771.5097 | U29: 1543154.85 | V29: 498771.5097 | W29: 0 | X29: 1044383.34 | Y29: 7446024.876 | Z29: 3465046.528 | AA29: 10911071.4 | AB29: 188597532.5 | AC29: 542217.9059 | AD29: 1044383.34 | AE29: 542217.9059 | AF29: 502165.4344 | AG29: 0 | AH29: 1000000 | AI29: 0 | AJ29: 542217.9059 | AK29: 0 | AL29: 188055314.6 | AM29: 1000000 | AN29: 0 | AO29: 1000000 | AP29: 1000000 | AQ29: 502165.4344 | AR29: 0 | AS29: 1000000 | AT29: 502165.4344
A30: 18 | B30: 9996456.688 | C30: 2118848.56 | E30: 0.057625 | F30: 0.00575 | G30: 0.00575 | I30: 0.01837270341 | J30: 0.706022315 | K30: 7231398.425 | L30: 1532766.921 | N30: 18 | O30: 188055314.6 | P30: 78356.38107 | Q30: 78356.38107 | R30: 0 | S30: 1454410.54 | T30: 470138.2864 | U30: 1454410.54 | V30: 470138.2864 | W30: 0 | X30: 984272.2537 | Y30: 7231398.425 | Z30: 3322224.181 | AA30: 10553622.61 | AB30: 177501692 | AC30: 1020634.729 | AD30: 984272.2537 | AE30: 984272.2537 | AF30: 0 | AG30: 36362.47506 | AH30: 1000000 | AI30: 36362.47506 | AJ30: 1020634.729 | AK30: 0 | AL30: 176481057.2 | AM30: 1000000 | AN30: 36362.47506 | AO30: 963637.5249 | AP30: 1000000 | AQ30: 0 | AR30: 0 | AS30: 963637.5249 | AT30: 0
A31: 19 | B31: 9933476.616 | C31: 2037103.561 | E31: 0.0605 | F31: 0.002875 | G31: 0.002875 | I31: 0.01871657754 | J31: 0.6908161706 | K31: 7013256.156 | L31: 1438240.572 | N31: 19 | O31: 176481057.2 | P31: 73533.77385 | Q31: 73533.77385 | R31: 0 | S31: 1364706.798 | T31: 441202.6431 | U31: 1364706.798 | V31: 441202.6431 | W31: 0 | X31: 923504.1552 | Y31: 7013256.156 | Z31: 3171857.239 | AA31: 10185113.4 | AB31: 166295943.8 | AC31: 478100.8385 | AD31: 923504.1552 | AE31: 478100.8385 | AF31: 445403.3166 | AG31: 0 | AH31: 963637.5249 | AI31: 0 | AJ31: 478100.8385 | AK31: 0 | AL31: 165817843 | AM31: 963637.5249 | AN31: 0 | AO31: 963637.5249 | AP31: 1000000 | AQ31: 445403.3166 | AR31: 36362.47506 | AS31: 1000000 | AT31: 409040.8416
A32: 20 | B32: 9874685.13 | C32: 1955844.519 | E32: 0.0626 | F32: 0.0021 | G32: 0.0021 | I32: 0.01907356948 | J32: 0.6762167967 | K32: 6821592.167 | L32: 1351129.021 | N32: 20 | O32: 165817843 | P32: 69090.76792 | Q32: 69090.76792 | R32: 0 | S32: 1282038.253 | T32: 414544.6075 | U32: 1282038.253 | V32: 414544.6075 | W32: 0 | X32: 867493.6454 | Y32: 6821592.167 | Z32: 3032626.038 | AA32: 9854218.205 | AB32: 155963624.8 | AC32: 327523.6121 | AD32: 867493.6454 | AE32: 327523.6121 | AF32: 539970.0334 | AG32: 0 | AH32: 1000000 | AI32: 0 | AJ32: 327523.6121 | AK32: 0 | AL32: 155636101.2 | AM32: 1000000 | AN32: 0 | AO32: 1000000 | AP32: 1000000 | AQ32: 539970.0334 | AR32: 0 | AS32: 1000000 | AT32: 539970.0334
A33: 21 | B33: 9828444.646 | C33: 1875044.672 | E33: 0.0668 | F33: 0.0042 | G33: 0.0042 | I33: 0.01944444444 | J33: 0.6602832506 | K33: 6646159.355 | L33: 1267936.702 | N33: 21 | O33: 155636101.2 | P33: 64848.37549 | Q33: 64848.37549 | R33: 0 | S33: 1203088.327 | T33: 389090.253 | U33: 1203088.327 | V33: 389090.253 | W33: 0 | X33: 813998.0736 | Y33: 6646159.355 | Z33: 2897026.647 | AA33: 9543186.002 | AB33: 146092915.2 | AC33: 613590.2438 | AD33: 813998.0736 | AE33: 613590.2438 | AF33: 200407.8298 | AG33: 0 | AH33: 1000000 | AI33: 0 | AJ33: 613590.2438 | AK33: 0 | AL33: 145479324.9 | AM33: 1000000 | AN33: 0 | AO33: 1000000 | AP33: 1000000 | AQ33: 200407.8298 | AR33: 0 | AS33: 1000000 | AT33: 200407.8298
A34: 22 | B34: 9779896.346 | C34: 1794611.565 | E34: 0.0689 | F34: 0.0021 | G34: 0.0021 | I34: 0.01983002833 | J34: 0.6458307164 | K34: 6457501.75 | L34: 1184951.958 | N34: 22 | O34: 145479324.9 | P34: 60616.38539 | Q34: 60616.38539 | R34: 0 | S34: 1124335.572 | T34: 363698.3123 | U34: 1124335.572 | V34: 363698.3123 | W34: 0 | X34: 760637.2598 | Y34: 6457501.75 | Z34: 2756806.692 | AA34: 9214308.442 | AB34: 136265016.5 | AC34: 286156.5346 | AD34: 760637.2598 | AE34: 286156.5346 | AF34: 474480.7252 | AG34: 0 | AH34: 1000000 | AI34: 0 | AJ34: 286156.5346 | AK34: 0 | AL34: 135978860 | AM34: 1000000 | AN34: 0 | AO34: 1000000 | AP34: 1000000 | AQ34: 474480.7252 | AR34: 0 | AS34: 1000000 | AT34: 474480.7252
A35: 23 | B35: 9735402.994 | C35: 1714535.293 | E35: 0.07045 | F35: 0.00155 | G35: 0.00155 | I35: 0.02023121387 | J35: 0.6317839917 | K35: 6287422.29 | L35: 1107299.556 | N35: 23 | O35: 135978860 | P35: 56657.85832 | Q35: 56657.85832 | R35: 0 | S35: 1050641.698 | T35: 339947.1499 | U35: 1050641.698 | V35: 339947.1499 | W35: 0 | X35: 710694.5482 | Y35: 6287422.29 | Z35: 2623815.213 | AA35: 8911237.503 | AB35: 127067622.5 | AC35: 196954.8148 | AD35: 710694.5482 | AE35: 196954.8148 | AF35: 513739.7334 | AG35: 0 | AH35: 1000000 | AI35: 0 | AJ35: 196954.8148 | AK35: 0 | AL35: 126870667.6 | AM35: 1000000 | AN35: 0 | AO35: 1000000 | AP35: 1000000 | AQ35: 513739.7334 | AR35: 0 | AS35: 1000000 | AT35: 513739.7334
A36: 24 | B36: 9650680.098 | C36: 1634816.654 | E36: 0.07355 | F36: 0.0031 | G36: 0.0031 | I36: 0.02064896755 | J36: 0.6168202158 | K36: 6097145.195 | L36: 1032850.991 | N36: 24 | O36: 126870667.6 | P36: 52862.77819 | Q36: 52862.77819 | R36: 0 | S36: 979988.2129 | T36: 317176.6691 | U36: 979988.2129 | V36: 317176.6691 | W36: 0 | X36: 662811.5437 | Y36: 6097145.195 | Z36: 2493848.546 | AA36: 8590993.741 | AB36: 118279673.9 | AC36: 366666.9891 | AD36: 662811.5437 | AE36: 366666.9891 | AF36: 296144.5546 | AG36: 0 | AH36: 1000000 | AI36: 0 | AJ36: 366666.9891 | AK36: 0 | AL36: 117913006.9 | AM36: 1000000 | AN36: 0 | AO36: 1000000 | AP36: 1000000 | AQ36: 296144.5546 | AR36: 0 | AS36: 1000000 | AT36: 296144.5546
A37: 25 | B37: 9549086.585 | C37: 1555781.321 | E37: 0.0751 | F37: 0.00155 | G37: 0.00155 | I37: 0.02108433735 | J37: 0.6028790571 | K37: 5890069.648 | L37: 959637.3701 | N37: 25 | O37: 117913006.9 | P37: 49130.41955 | Q37: 49130.41955 | R37: 0 | S37: 910506.9506 | T37: 294782.5173 | U37: 910506.9506 | V37: 294782.5173 | W37: 0 | X37: 615724.4333 | Y37: 5890069.648 | Z37: 2361929.4 | AA37: 8251999.048 | AB37: 109661007.9 | AC37: 169974.5622 | AD37: 615724.4333 | AE37: 169974.5622 | AF37: 445749.8711 | AG37: 0 | AH37: 1000000 | AI37: 0 | AJ37: 169974.5622 | AK37: 0 | AL37: 109491033.3 | AM37: 1000000 | AN37: 0 | AO37: 1000000 | AP37: 1000000 | AQ37: 445749.8711 | AR37: 0 | AS37: 1000000 | AT37: 445749.8711
A38: 26 | B38: 9428619.554 | C38: 1477578.362 | E38: 0.07595 | F38: 0.00085 | G38: 0.00085 | I38: 0.02153846154 | J38: 0.5893925598 | K38: 5684317.266 | L38: 890801.0497 | N38: 26 | O38: 109491033.3 | P38: 45621.26388 | Q38: 45621.26388 | R38: 0 | S38: 845179.7858 | T38: 273727.5833 | U38: 845179.7858 | V38: 273727.5833 | W38: 0 | X38: 571452.2025 | Y38: 5684317.266 | Z38: 2235836.961 | AA38: 7920154.227 | AB38: 101570879.1 | AC38: 86335.24722 | AD38: 571452.2025 | AE38: 86335.24722 | AF38: 485116.9553 | AG38: 0 | AH38: 1000000 | AI38: 0 | AJ38: 86335.24722 | AK38: 0 | AL38: 101484543.8 | AM38: 1000000 | AN38: 0 | AO38: 1000000 | AP38: 1000000 | AQ38: 485116.9553 | AR38: 0 | AS38: 1000000 | AT38: 485116.9553
A39: 27 | B39: 9305271.163 | C39: 1400347.285 | E39: 0.07765 | F39: 0.0017 | G39: 0.0017 | I39: 0.02201257862 | J39: 0.5754385983 | K39: 5484457.59 | L39: 825354.2711 | N39: 27 | O39: 101484543.8 | P39: 42285.2266 | Q39: 42285.2266 | R39: 0 | S39: 783069.0445 | T39: 253711.3596 | U39: 783069.0445 | V39: 253711.3596 | W39: 0 | X39: 529357.6849 | Y39: 5484457.59 | Z39: 2113209.446 | AA39: 7597667.036 | AB39: 93886876.79 | AC39: 159607.6906 | AD39: 529357.6849 | AE39: 159607.6906 | AF39: 369749.9944 | AG39: 0 | AH39: 1000000 | AI39: 0 | AJ39: 159607.6906 | AK39: 0 | AL39: 93727269.1 | AM39: 1000000 | AN39: 0 | AO39: 1000000 | AP39: 1000000 | AQ39: 369749.9944 | AR39: 0 | AS39: 1000000 | AT39: 369749.9944
A40: 28 | B40: 9172892.1 | C40: 1324096.769 | E40: 0.0785 | F40: 0.00085 | G40: 0.00085 | I40: 0.02250803859 | J40: 0.5620084905 | K40: 5278436.172 | L40: 761936.3886 | N40: 28 | O40: 93727269.1 | P40: 39053.02879 | Q40: 39053.02879 | R40: 0 | S40: 722883.3598 | T40: 234318.1728 | U40: 722883.3598 | V40: 234318.1728 | W40: 0 | X40: 488565.187 | Y40: 5278436.172 | Z40: 1990809.744 | AA40: 7269245.917 | AB40: 86458023.19 | AC40: 73489.31971 | AD40: 488565.187 | AE40: 73489.31971 | AF40: 415075.8673 | AG40: 0 | AH40: 1000000 | AI40: 0 | AJ40: 73489.31971 | AK40: 0 | AL40: 86384533.87 | AM40: 1000000 | AN40: 0 | AO40: 1000000 | AP40: 1000000 | AQ40: 415075.8673 | AR40: 0 | AS40: 1000000 | AT40: 415075.8673
A41: 29 | B41: 8987584.322 | C41: 1248873.759 | E41: 0.07895 | F41: 0.00045 | G41: 0.00045 | I41: 0.02302631579 | J41: 0.5488204251 | K41: 5051098.698 | L41: 701877.6563 | N41: 29 | O41: 86384533.87 | P41: 35993.55578 | Q41: 35993.55578 | R41: 0 | S41: 665884.1005 | T41: 215961.3347 | U41: 665884.1005 | V41: 215961.3347 | W41: 0 | X41: 449922.7658 | Y41: 5051098.698 | Z41: 1872809.362 | AA41: 6923908.061 | AB41: 79460625.81 | AC41: 35757.28161 | AD41: 449922.7658 | AE41: 35757.28161 | AF41: 414165.4842 | AG41: 0 | AH41: 1000000 | AI41: 0 | AJ41: 35757.28161 | AK41: 0 | AL41: 79424868.53 | AM41: 1000000 | AN41: 0 | AO41: 1000000 | AP41: 1000000 | AQ41: 414165.4842 | AR41: 0 | AS41: 1000000 | AT41: 414165.4842
A42: 30 | B42: 8733376.572 | C42: 1175134.247 | E42: 0.07985 | F42: 0.0009 | G42: 0.0009 | I42: 0.02356902357 | J42: 0.5354029669 | K42: 4793055.443 | L42: 644937.6773 | N42: 30 | O42: 79424868.53 | P42: 33093.69522 | Q42: 33093.69522 | R42: 0 | S42: 611843.982 | T42: 198562.1713 | U42: 611843.982 | V42: 198562.1713 | W42: 0 | X42: 413281.8107 | Y42: 4793055.443 | Z42: 1758998.962 | AA42: 6552054.404 | AB42: 72872814.12 | AC42: 65585.53271 | AD42: 413281.8107 | AE42: 65585.53271 | AF42: 347696.278 | AG42: 0 | AH42: 1000000 | AI42: 0 | AJ42: 65585.53271 | AK42: 0 | AL42: 72807228.59 | AM42: 1000000 | AN42: 0 | AO42: 1000000 | AP42: 1000000 | AQ42: 347696.278 | AR42: 0 | AS42: 1000000 | AT42: 347696.278
A43: 31 | B43: 8506979.277 | C43: 1103396.413 | E43: 0.0803 | F43: 0.00045 | G43: 0.00045 | I43: 0.02413793103 | J43: 0.5222443312 | K43: 4554661.944 | L43: 590761.7134 | N43: 31 | O43: 72807228.59 | P43: 30336.34525 | Q43: 30336.34525 | R43: 0 | S43: 560425.3681 | T43: 182018.0715 | U43: 560425.3681 | V43: 182018.0715 | W43: 0 | X43: 378407.2967 | Y43: 4554661.944 | Z43: 1647475.747 | AA43: 6202137.69 | AB43: 66605090.9 | AC43: 29972.2909 | AD43: 378407.2967 | AE43: 29972.2909 | AF43: 348435.0058 | AG43: 0 | AH43: 1000000 | AI43: 0 | AJ43: 29972.2909 | AK43: 0 | AL43: 66575118.61 | AM43: 1000000 | AN43: 0 | AO43: 1000000 | AP43: 1000000 | AQ43: 348435.0058 | AR43: 0 | AS43: 1000000 | AT43: 348435.0058
A44: 32 | B44: 8277576.005 | C44: 1033496.004 | E44: 0.0807 | F44: 0.0004 | G44: 0.0004 | I44: 0.02473498233 | J44: 0.5091228963 | K44: 4322917.145 | L44: 539737.4294 | N44: 32 | O44: 66575118.61 | P44: 27739.63275 | Q44: 27739.63275 | R44: 0 | S44: 511997.7966 | T44: 166437.7965 | U44: 511997.7966 | V44: 166437.7965 | W44: 0 | X44: 345560.0001 | Y44: 4322917.145 | Z44: 1539807.103 | AA44: 5862724.248 | AB44: 60712394.36 | AC44: 24284.95774 | AD44: 345560.0001 | AE44: 24284.95774 | AF44: 321275.0423 | AG44: 0 | AH44: 1000000 | AI44: 0 | AJ44: 24284.95774 | AK44: 0 | AL44: 60688109.4 | AM44: 1000000 | AN44: 0 | AO44: 1000000 | AP44: 1000000 | AQ44: 321275.0423 | AR44: 0 | AS44: 1000000 | AT44: 321275.0423
A45: 33 | B45: 8108167.297 | C45: 965497.3025 | E45: 0.0815 | F45: 0.0008 | G45: 0.0008 | I45: 0.02536231884 | J45: 0.4958133907 | K45: 4128053.617 | L45: 491556.783 | N45: 33 | O45: 60688109.4 | P45: =O45*ServicingFee/12 -> 25286.71225 | Q45: 25286.71225 | R45: 0 | S45: 466270.0707 | T45: =O45*(Coupon/12) -> 151720.2735 | U45: 466270.0707 | V45: 151720.2735 | W45: 0 | X45: 314549.7972 | Y45: 4128053.617 | Z45: 1434494.168 | AA45: 5562547.786 | AB45: 55125561.62 | AC45: 44100.44929 | AD45: 314549.7972 | AE45: 44100.44929 | AF45: 270449.3479 | AG45: 0 | AH45: 1000000 | AI45: 0 | AJ45: 44100.44929 | AK45: 0 | AL45: 55081461.17 | AM45: 1000000 | AN45: 0 | AO45: 1000000 | AP45: 1000000 | AQ45: 270449.3479 | AR45: 0 | AS45: 1000000 | AT45: 270449.3479
A46: 34 | B46: 7958542.082 | C46: 898890.9039 | E46: 0.0819 | F46: 0.0004 | G46: 0.0004 | I46: 0.02602230483 | J46: 0.4827180191 | K46: 3945951.735 | L46: 445682.147 | N46: 34 | O46: 55081461.17 | P46: 22950.60882 | Q46: 22950.60882 | R46: 0 | S46: 422731.5381 | T46: 137703.6529 | U46: 422731.5381 | V46: 137703.6529 | W46: 0 | X46: 285027.8852 | Y46: 3945951.735 | Z46: 1330663.814 | AA46: 5276615.549 | AB46: 49804845.62 | AC46: 19921.93825 | AD46: 285027.8852 | AE46: 19921.93825 | AF46: 265105.947 | AG46: 0 | AH46: 1000000 | AI46: 0 | AJ46: 19921.93825 | AK46: 0 | AL46: 49784923.68 | AM46: 1000000 | AN46: 0 | AO46: 1000000 | AP46: 1000000 | AQ46: 265105.947 | AR46: 0 | AS46: 1000000 | AT46: 265105.947
A47: 35 | B47: 7812082.618 | C47: 833558.3702 | E47: 0.082 | F47: 0.0001 | G47: 0.0001 | I47: 0.02671755725 | J47: 0.4697739907 | K47: 3771033.046 | L47: 402373.6453 | N47: 35 | O47: 49784923.68 | P47: 20743.7182 | Q47: 20743.7182 | R47: 0 | S47: 381629.9271 | T47: 124462.3092 | U47: 381629.9271 | V47: 124462.3092 | W47: 0 | X47: 257167.6179 | Y47: 3771033.046 | Z47: 1229378.757 | AA47: 5000411.804 | AB47: 44784511.87 | AC47: 4478.451187 | AD47: 257167.6179 | AE47: 4478.451187 | AF47: 252689.1667 | AG47: 0 | AH47: 1000000 | AI47: 0 | AJ47: 4478.451187 | AK47: 0 | AL47: 44780033.42 | AM47: 1000000 | AN47: 0 | AO47: 1000000 | AP47: 1000000 | AQ47: 252689.1667 | AR47: 0 | AS47: 1000000 | AT47: 252689.1667
A48: 36 | B48: 7614957.733 | C48: 769499.1331 | E48: 0.0821 | F48: 0.0001 | G48: 0.0001 | I48: 0.02745098039 | J48: 0.4568325462 | K48: 3577309.083 | L48: 361490.6786 | N48: 36 | O48: 44780033.42 | P48: 18658.34726 | Q48: 18658.34726 | R48: 0 | S48: 342832.3313 | T48: 111950.0836 | U48: 342832.3313 | V48: 111950.0836 | W48: 0 | X48: 230882.2477 | Y48: 3577309.083 | Z48: 1131055.178 | AA48: 4708364.261 | AB48: 40071669.16 | AC48: 4007.166916 | AD48: 230882.2477 | AE48: 4007.166916 | AF48: 226875.0808 | AG48: 0 | AH48: 1000000 | AI48: 0 | AJ48: 4007.166916 | AK48: 0 | AL48: 40067662 | AM48: 1000000 | AN48: 0 | AO48: 1000000 | AP48: 1000000 | AQ48: 226875.0808 | AR48: 0 | AS48: 1000000 | AT48: 226875.0808
A49: 37 | B49: 7380086.56 | C49: 707105.6506 | E49: 0.0822 | F49: 0.0001 | G49: 0.0001 | I49: 0.02822580645 | J49: 0.4438936854 | K49: 3371463.735 | L49: 323028.8748 | N49: 37 | O49: 40067662 | P49: 16694.85916 | Q49: 16694.85916 | R49: 0 | S49: 306334.0157 | T49: 100169.155 | U49: 306334.0157 | V49: 100169.155 | W49: 0 | X49: 206164.8607 | Y49: 3371463.735 | Z49: 1035779.79 | AA49: 4407243.524 | AB49: 35660418.47 | AC49: 3566.041847 | AD49: 206164.8607 | AE49: 3566.041847 | AF49: 202598.8188 | AG49: 0 | AH49: 1000000 | AI49: 0 | AJ49: 3566.041847 | AK49: 0 | AL49: 35656852.43 | AM49: 1000000 | AN49: 0 | AO49: 1000000 | AP49: 1000000 | AQ49: 202598.8188 | AR49: 0 | AS49: 1000000 | AT49: 202598.8188
A50: 38 | B50: 7115211.063 | C50: 646699.3504 | E50: 0.0823 | F50: 0.0001 | G50: 0.0001 | I50: 0.02904564315 | J50: 0.4309574078 | K50: 3158397.261 | L50: 287065.758 | N50: 38 | O50: 35656852.43 | P50: 14857.02185 | Q50: 14857.02185 | R50: 0 | S50: 272208.7362 | T50: 89142.13107 | U50: 272208.7362 | V50: 89142.13107 | W50: 0 | X50: 183066.6051 | Y50: 3158397.261 | Z50: 943938.5318 | AA50: 4102335.793 | AB50: 31554516.64 | AC50: 3155.451664 | AD50: 183066.6051 | AE50: 3155.451664 | AF50: 179911.1534 | AG50: 0 | AH50: 1000000 | AI50: 0 | AJ50: 3155.451664 | AK50: 0 | AL50: 31551361.18 | AM50: 1000000 | AN50: 0 | AO50: 1000000 | AP50: 1000000 | AQ50: 179911.1534 | AR50: 0 | AS50: 1000000 | AT50: 179911.1534
A51: 39 | B51: 6863890.794 | C51: 588531.4248 | E51: 0.0824 | F51: 0.0001 | G51: 0.0001 | I51: 0.02991452991 | J51: 0.4180237129 | K51: 2958044.584 | L51: 253631.9772 | N51: 39 | O51: 31551361.18 | P51: 13146.40049 | Q51: 13146.40049 | R51: 0 | S51: 240485.5767 | T51: 78878.40296 | U51: 240485.5767 | V51: 78878.40296 | W51: 0 | X51: 161607.1738 | Y51: 2958044.584 | Z51: 855355.6248 | AA51: 3813400.209 | AB51: 27737960.98 | AC51: 2773.796098 | AD51: 161607.1738 | AE51: 2773.796098 | AF51: 158833.3777 | AG51: 0 | AH51: 1000000 | AI51: 0 | AJ51: 2773.796098 | AK51: 0 | AL51: 27735187.18 | AM51: 1000000 | AN51: 0 | AO51: 1000000 | AP51: 1000000 | AQ51: 158833.3777 | AR51: 0 | AS51: 1000000 | AT51: 158833.3777
A52: 40 | B52: 6618377.964 | C52: 532463.4141 | E52: 0.0825 | F52: 0.0001 | G52: 0.0001 | I52: 0.03083700441 | J52: 0.4050926006 | K52: 2766638.93 | L52: 222582.3334 | N52: 40 | O52: 27735187.18 | P52: 11556.32799 | Q52: 11556.32799 | R52: 0 | S52: 211026.0054 | T52: 69337.96795 | U52: 211026.0054 | V52: 69337.96795 | W52: 0 | X52: 141688.0374 | Y52: 2766638.93 | Z52: 769955.2324 | AA52: 3536594.163 | AB52: 24198593.02 | AC52: 2419.859302 | AD52: 141688.0374 | AE52: 2419.859302 | AF52: 139268.1781 | AG52: 0 | AH52: 1000000 | AI52: 0 | AJ52: 2419.859302 | AK52: 0 | AL52: 24196173.16 | AM52: 1000000 | AN52: 0 | AO52: 1000000 | AP52: 1000000 | AQ52: 139268.1781 | AR52: 0 | AS52: 1000000 | AT52: 139268.1781
A53: 41 | B53: 6288526.389 | C53: 478466.054 | E53: 0.0826 | F53: 0.0001 | G53: 0.0001 | I53: 0.03181818182 | J53: 0.3921640702 | K53: 2547435.509 | L53: 193823.0581 | N53: 41 | O53: 24196173.16 | P53: 10081.73882 | Q53: 10081.73882 | R53: 0 | S53: 183741.3193 | T53: 60490.43289 | U53: 183741.3193 | V53: 60490.43289 | W53: 0 | X53: 123250.8864 | Y53: 2547435.509 | Z53: 688823.4706 | AA53: 3236258.979 | AB53: 20959914.18 | AC53: 2095.991418 | AD53: 123250.8864 | AE53: 2095.991418 | AF53: 121154.895 | AG53: 0 | AH53: 1000000 | AI53: 0 | AJ53: 2095.991418 | AK53: 0 | AL53: 20957818.19 | AM53: 1000000 | AN53: 0 | AO53: 1000000 | AP53: 1000000 | AQ53: 121154.895 | AR53: 0 | AS53: 1000000 | AT53: 121154.895
A54: 42 | B54: 5846482.54 | C54: 427251.3395 | E54: 0.0827 | F54: 0.0001 | G54: 0.0001 | I54: 0.03286384977 | J54: 0.3792381215 | K54: 2292780.389 | L54: 167552.6243 | N54: 42 | O54: 20957818.19 | P54: 8732.424244 | Q54: 8732.424244 | R54: 0 | S54: 158820.2001 | T54: 52394.54547 | U54: 158820.2001 | V54: 52394.54547 | W54: 0 | X54: 106425.6546 | Y54: 2292780.389 | Z54: 613404.998 | AA54: 2906185.387 | AB54: 18051632.8 | AC54: 1805.16328 | AD54: 106425.6546 | AE54: 1805.16328 | AF54: 104620.4913 | AG54: 0 | AH54: 1000000 | AI54: 0 | AJ54: 1805.16328 | AK54: 0 | AL54: 18049827.64 | AM54: 1000000 | AN54: 0 | AO54: 1000000 | AP54: 1000000 | AQ54: 104620.4913 | AR54: 0 | AS54: 1000000 | AT54: 104620.4913
A55: 43 | B55: 5390956.592 | C55: 379763.044 | E55: 0.0828 | F55: 0.0001 | G55: 0.0001 | I55: 0.03398058252 | J55: 0.3663147541 | K55: 2044456.251 | L55: 144020.6234 | N55: 43 | O55: 18049827.64 | P55: 7520.761515 | Q55: 7520.761515 | R55: 0 | S55: 136499.8619 | T55: 45124.56909 | U55: 136499.8619 | V55: 45124.56909 | W55: 0 | X55: 91375.29281 | Y55: 2044456.251 | Z55: 543871.8432 | AA55: 2588328.094 | AB55: 15461499.54 | AC55: 1546.149954 | AD55: 91375.29281 | AE55: 1546.149954 | AF55: 89829.14285 | AG55: 0 | AH55: 1000000 | AI55: 0 | AJ55: 1546.149954 | AK55: 0 | AL55: 15459953.39 | AM55: 1000000 | AN55: 0 | AO55: 1000000 | AP55: 1000000 | AQ55: 89829.14285 | AR55: 0 | AS55: 1000000 | AT55: 89829.14285
A56: 44 | B56: 4982726.641 | C56: 336104.6541 | E56: 0.0829 | F56: 0.0001 | G56: 0.0001 | I56: 0.0351758794 | J56: 0.3533939676 | K56: 1825246.284 | L56: 123120.0937 | N56: 44 | O56: 15459953.39 | P56: 6441.647247 | Q56: 6441.647247 | R56: 0 | S56: 116678.4465 | T56: 38649.88348 | U56: 116678.4465 | V56: 38649.88348 | W56: 0 | X56: 78028.56297 | Y56: 1825246.284 | Z56: 479612.8128 | AA56: 2304859.097 | AB56: 13155094.3 | AC56: 1315.50943 | AD56: 78028.56297 | AE56: 1315.50943 | AF56: 76713.05354 | AG56: 0 | AH56: 1000000 | AI56: 0 | AJ56: 1315.50943 | AK56: 0 | AL56: 13153778.79 | AM56: 1000000 | AN56: 0 | AO56: 1000000 | AP56: 1000000 | AQ56: 76713.05354 | AR56: 0 | AS56: 1000000 | AT56: 76713.05354
A57: 45 | B57: 4630270.663 | C57: 295856.8057 | E57: 0.083 | F57: 0.0001 | G57: 0.0001 | I57: 0.03645833333 | J57: 0.3404757615 | K57: 1636309.72 | L57: 104554.0104 | N57: 45 | O57: 13153778.79 | P57: 5480.741161 | Q57: 5480.741161 | R57: 0 | S57: 99073.26923 | T57: 32884.44696 | U57: 99073.26923 | V57: 32884.44696 | W57: 0 | X57: 66188.82227 | Y57: 1636309.72 | Z57: 419907.7263 | AA57: 2056217.447 | AB57: 11097561.34 | AC57: 1109.756134 | AD57: 66188.82227 | AE57: 1109.756134 | AF57: 65079.06613 | AG57: 0 | AH57: 1000000 | AI57: 0 | AJ57: 1109.756134 | AK57: 0 | AL57: 11096451.58 | AM57: 1000000 | AN57: 0 | AO57: 1000000 | AP57: 1000000 | AQ57: 65079.06613 | AR57: 0 | AS57: 1000000 | AT57: 65079.06613
A58: 46 | B58: 4325556.762 | C58: 258588.8529 | E58: 0.0831 | F58: 0.0001 | G58: 0.0001 | I58: 0.03783783784 | J58: 0.3275601356 | K58: 1472747.233 | L58: 88043.23661 | N58: 46 | O58: 11096451.58 | P58: 4623.521493 | Q58: 4623.521493 | R58: 0 | S58: 83419.71512 | T58: 27741.12896 | U58: 83419.71512 | V58: 27741.12896 | W58: 0 | X58: 55678.58616 | Y58: 1472747.233 | Z58: 364140.1646 | AA58: 1836887.397 | AB58: 9259564.186 | AC58: 925.9564186 | AD58: 55678.58616 | AE58: 925.9564186 | AF58: 54752.62974 | AG58: 0 | AH58: 1000000 | AI58: 0 | AJ58: 925.9564186 | AK58: 0 | AL58: 9258638.229 | AM58: 1000000 | AN58: 0 | AO58: 1000000 | AP58: 1000000 | AQ58: 54752.62974 | AR58: 0 | AS58: 1000000 | AT58: 54752.62974
A59: 47 | B59: 4039026.34 | C59: 223876.5303 | E59: 0.0832 | F59: 0.0001 | G59: 0.0001 | I59: 0.0393258427 | J59: 0.3146470893 | K59: 1323024.015 | L59: 73333.02662 | N59: 47 | O59: 9258638.229 | P59: 3857.765929 | Q59: 3857.765929 | R59: 0 | S59: 69475.26069 | T59: 23146.59557 | U59: 69475.26069 | V59: 23146.59557 | W59: 0 | X59: 46328.66511 | Y59: 1323024.015 | Z59: 312074.7163 | AA59: 1635098.732 | AB59: 7623539.498 | AC59: 762.3539498 | AD59: 46328.66511 | AE59: 762.3539498 | AF59: 45566.31116 | AG59: 0 | AH59: 1000000 | AI59: 0 | AJ59: 762.3539498 | AK59: 0 | AL59: 7622777.144 | AM59: 1000000 | AN59: 0 | AO59: 1000000 | AP59: 1000000 | AQ59: 45566.31116 | AR59: 0 | AS59: 1000000 | AT59: 45566.31116
A60: 48 | B60: 3747998.022 | C60: 191605.2807 | E60: 0.0833 | F60: 0.0001 | G60: 0.0001 | I60: 0.04093567251 | J60: 0.3017366225 | K60: 1179296.668 | L60: 60288.04388 | N60: 48 | O60: 7622777.144 | P60: 3176.157143 | Q60: 3176.157143 | R60: 0 | S60: 57111.88673 | T60: 19056.94286 | U60: 57111.88673 | V60: 19056.94286 | W60: 0 | X60: 38054.94387 | Y60: 1179296.668 | Z60: 263768.2066 | AA60: 1443064.875 | AB60: 6179712.269 | AC60: 617.9712269 | AD60: 38054.94387 | AE60: 617.9712269 | AF60: 37436.97265 | AG60: 0 | AH60: 1000000 | AI60: 0 | AJ60: 617.9712269 | AK60: 0 | AL60: 6179094.297 | AM60: 1000000 | AN60: 0 | AO60: 1000000 | AP60: 1000000 | AQ60: 37436.97265 | AR60: 0 | AS60: 1000000 | AT60: 37436.97265
A61: 49 | B61: 3394370.724 | C61: 161731.3164 | E61: 0.0834 | F61: 0.0001 | G61: 0.0001 | I61: 0.04268292683 | J61: 0.2888287345 | K61: 1024205.958 | L61: 48800.26116 | N61: 49 | O61: 6179094.297 | P61: 2574.622624 | Q61: 2574.622624 | R61: 0 | S61: 46225.63853 | T61: 15447.73574 | U61: 46225.63853 | V61: 15447.73574 | W61: 0 | X61: 30777.90279 | Y61: 1024205.958 | Z61: 220025.7218 | AA61: 1244231.68 | AB61: 4934862.618 | AC61: 493.4862618 | AD61: 30777.90279 | AE61: 493.4862618 | AF61: 30284.41653 | AG61: 0 | AH61: 1000000 | AI61: 0 | AJ61: 493.4862618 | AK61: 0 | AL61: 4934369.132 | AM61: 1000000 | AN61: 0 | AO61: 1000000 | AP61: 1000000 | AQ61: 30284.41653 | AR61: 0 | AS61: 1000000 | AT61: 30284.41653
A62: 50 | B62: 3033016.93 | C62: 134773.8545 | E62: 0.0835 | F62: 0.0001 | G62: 0.0001 | I62: 0.04458598726 | J62: 0.2759234251 | K62: 876022.4417 | L62: 38926.56184 | N62: 50 | O62: 4934369.132 | P62: 2055.987138 | Q62: 2055.987138 | R62: 0 | S62: 36870.5747 | T62: 12335.92283 | U62: 36870.5747 | V62: 12335.92283 | W62: 0 | X62: 24534.65187 | Y62: 876022.4417 | Z62: 180945.3938 | AA62: 1056967.836 | AB62: 3877401.296 | AC62: 387.7401296 | AD62: 24534.65187 | AE62: 387.7401296 | AF62: 24146.91174 | AG62: 0 | AH62: 1000000 | AI62: 0 | AJ62: 387.7401296 | AK62: 0 | AL62: 3877013.556 | AM62: 1000000 | AN62: 0 | AO62: 1000000 | AP62: 1000000 | AQ62: 24146.91174 | AR62: 0 | AS62: 1000000 | AT62: 24146.91174
A63: 51 | B63: 2694658.96 | C63: 110796.5693 | E63: 0.0836 | F63: 0.0001 | G63: 0.0001 | I63: 0.04666666667 | J63: 0.2630206939 | K63: 743519.53 | L63: 30571.36888 | N63: 51 | O63: 3877013.556 | P63: 1615.422315 | Q63: 1615.422315 | R63: 0 | S63: 28955.94657 | T63: 9692.53389 | U63: 28955.94657 | V63: 9692.53389 | W63: 0 | X63: 19263.41268 | Y63: 743519.53 | Z63: 146229.7212 | AA63: 889749.2512 | AB63: 2987264.305 | AC63: 298.7264305 | AD63: 19263.41268 | AE63: 298.7264305 | AF63: 18964.68625 | AG63: 0 | AH63: 1000000 | AI63: 0 | AJ63: 298.7264305 | AK63: 0 | AL63: 2986965.578 | AM63: 1000000 | AN63: 0 | AO63: 1000000 | AP63: 1000000 | AQ63: 18964.68625 | AR63: 0 | AS63: 1000000 | AT63: 18964.68625
A64: 52 | B64: 2353387.326 | C64: 89555.45625 | E64: 0.0837 | F64: 0.0001 | G64: 0.0001 | I64: 0.04895104895 | J64: 0.2501205405 | K64: 618989.5677 | L64: 23554.93825 | N64: 52 | O64: 2986965.578 | P64: 1244.568991 | Q64: 1244.568991 | R64: 0 | S64: 22310.36926 | T64: 7467.413946 | U64: 22310.36926 | V64: 7467.413946 | W64: 0 | X64: 14842.95531 | Y64: 618989.5677 | Z64: 115914.9096 | AA64: 734904.4773 | AB64: 2252061.101 | AC64: 225.2061101 | AD64: 14842.95531 | AE64: 225.2061101 | AF64: 14617.7492 | AG64: 0 | AH64: 1000000 | AI64: 0 | AJ64: 225.2061101 | AK64: 0 | AL64: 2251835.895 | AM64: 1000000 | AN64: 0 | AO64: 1000000 | AP64: 1000000 | AQ64: 14617.7492 | AR64: 0 | AS64: 1000000 | AT64: 14617.7492
A65: 53 | B65: 2019514.472 | C65: 71035.99467 | E65: 0.0838 | F65: 0.0001 | G65: 0.0001 | I65: 0.05147058824 | J65: 0.2372229645 | K65: 505122.0512 | L65: 17767.56138 | N65: 53 | O65: 2251835.895 | P65: 938.2649562 | Q65: 938.2649562 | R65: 0 | S65: 16829.29643 | T65: 5629.589737 | U65: 16829.29643 | V65: 5629.589737 | W65: 0 | X65: 11199.70669 | Y65: 505122.0512 | Z65: 89904.38902 | AA65: 595026.4402 | AB65: 1656809.455 | AC65: 165.6809455 | AD65: 11199.70669 | AE65: 165.6809455 | AF65: 11034.02574 | AG65: 0 | AH65: 1000000 | AI65: 0 | AJ65: 165.6809455 | AK65: 0 | AL65: 1656643.774 | AM65: 1000000 | AN65: 0 | AO65: 1000000 | AP65: 1000000 | AQ65: 11034.02574 | AR65: 0 | AS65: 1000000 | AT65: 11034.02574
A66: 54 | B66: 1686870.162 | C66: 55176.06301 | E66: 0.0839 | F66: 0.0001 | G66: 0.0001 | I66: 0.05426356589 | J66: 0.2243279655 | K66: 400164.3405 | L66: 13089.02924 | N66: 54 | O66: 1656643.774 | P66: 690.2682391 | Q66: 690.2682391 | R66: 0 | S66: 12398.761 | T66: 4141.609435 | U66: 12398.761 | V66: 4141.609435 | W66: 0 | X66: 8257.151563 | Y66: 400164.3405 | Z66: 68181.05452 | AA66: 468345.395 | AB66: 1188298.379 | AC66: 118.8298379 | AD66: 8257.151563 | AE66: 118.8298379 | AF66: 8138.321725 | AG66: 0 | AH66: 1000000 | AI66: 0 | AJ66: 118.8298379 | AK66: 0 | AL66: 1188179.549 | AM66: 1000000 | AN66: 0 | AO66: 1000000 | AP66: 1000000 | AQ66: 8138.321725 | AR66: 0 | AS66: 1000000 | AT66: 8138.321725
A67: 55 | B67: 1335691.053 | C67: 41975.02114 | E67: 0.084 | F67: 0.0001 | G67: 0.0001 | I67: 0.05737704918 | J67: 0.2114355431 | K67: 299632.8563 | L67: 9416.171093 | N67: 55 | O67: 1188179.549 | P67: 495.0748121 | Q67: 495.0748121 | R67: 0 | S67: 8921.096281 | T67: 2970.448872 | U67: 8921.096281 | V67: 2970.448872 | W67: 0 | X67: 5950.647408 | Y67: 299632.8563 | Z67: 50982.18728 | AA67: 350615.0436 | AB67: 837564.5053 | AC67: 83.75645053 | AD67: 5950.647408 | AE67: 83.75645053 | AF67: 5866.890958 | AG67: 0 | AH67: 1000000 | AI67: 0 | AJ67: 83.75645053 | AK67: 0 | AL67: 837480.7489 | AM67: 1000000 | AN67: 0 | AO67: 1000000 | AP67: 1000000 | AQ67: 5866.890958 | AR67: 0 | AS67: 1000000 | AT67: 5866.890958
A68: 56 | B68: 978691.3694 | C68: 31512.28392 | E68: 0.0841 | F68: 0.0001 | G68: 0.0001 | I68: 0.06086956522 | J68: 0.198545697 | K68: 206930.1412 | L68: 6662.816866 | N68: 56 | O68: 837480.7489 | P68: 348.950312 | Q68: 348.950312 | R68: 0 | S68: 6313.866554 | T68: 2093.701872 | U68: 6313.866554 | V68: 2093.701872 | W68: 0 | X68: 4220.164682 | Y68: 206930.1412 | Z68: 38381.34134 | AA68: 245311.4826 | AB68: 592169.2663 | AC68: 59.21692663 | AD68: 4220.164682 | AE68: 59.21692663 | AF68: 4160.947755 | AG68: 0 | AH68: 1000000 | AI68: 0 | AJ68: 59.21692663 | AK68: 0 | AL68: 592110.0494 | AM68: 1000000 | AN68: 0 | AO68: 1000000 | AP68: 1000000 | AQ68: 4160.947755 | AR68: 0 | AS68: 1000000 | AT68: 4160.947755
A69: 57 | B69: 687600.4718 | C69: 23794.81332 | E69: 0.0842 | F69: 0.0001 | G69: 0.0001 | I69: 0.06481481481 | J69: 0.1856584267 | K69: 136520.1149 | L69: 4724.357795 | N69: 57 | O69: 592110.0494 | P69: 246.7125206 | Q69: 246.7125206 | R69: 0 | S69: 4477.645274 | T69: 1480.275124 | U69: 4477.645274 | V69: 1480.275124 | W69: 0 | X69: 2997.370151 | Y69: 136520.1149 | Z69: 29528.97724 | AA69: 166049.0921 | AB69: 426060.9573 | AC69: 42.60609573 | AD69: 2997.370151 | AE69: 42.60609573 | AF69: 2954.764055 | AG69: 0 | AH69: 1000000 | AI69: 0 | AJ69: 42.60609573 | AK69: 0 | AL69: 426018.3512 | AM69: 1000000 | AN69: 0 | AO69: 1000000 | AP69: 1000000 | AQ69: 2954.764055 | AR69: 0 | AS69: 1000000 | AT69: 2954.764055
A70: 58 | B70: 468027.6439 | C70: 18341.63681 | E70: 0.0843 | F70: 0.0001 | G70: 0.0001 | I70: 0.06930693069 | J70: 0.1727737319 | K70: 86893.27601 | L70: 3405.279432 | N70: 58 | O70: 426018.3512 | P70: 177.5076463 | Q70: 177.5076463 | R70: 0 | S70: 3227.771786 | T70: 1065.045878 | U70: 3227.771786 | V70: 1065.045878 | W70: 0 | X70: 2162.725908 | Y70: 86893.27601 | Z70: 23503.71808 | AA70: 110396.9941 | AB70: 315621.3571 | AC70: 31.56213571 | AD70: 2162.725908 | AE70: 31.56213571 | AF70: 2131.163772 | AG70: 0 | AH70: 1000000 | AI70: 0 | AJ70: 31.56213571 | AK70: 0 | AL70: 315589.7949 | AM70: 1000000 | AN70: 0 | AO70: 1000000 | AP70: 1000000 | AQ70: 2131.163772 | AR70: 0 | AS70: 1000000 | AT70: 2131.163772
A71: 59 | B71: 374160.5443 | C71: 14602.80633 | E71: 0.0844 | F71: 0.0001 | G71: 0.0001 | I71: 0.07446808511 | J71: 0.1598916122 | K71: 64645.11357 | L71: 2522.981346 | N71: 59 | O71: 315589.7949 | P71: 131.4957479 | Q71: 131.4957479 | R71: 0 | S71: 2391.485598 | T71: 788.9744874 | U71: 2391.485598 | V71: 788.9744874 | W71: 0 | X71: 1602.511111 | Y71: 64645.11357 | Z71: 18687.36989 | AA71: 83332.48346 | AB71: 232257.3115 | AC71: 23.22573115 | AD71: 1602.511111 | AE71: 23.22573115 | AF71: 1579.28538 | AG71: 0 | AH71: 1000000 | AI71: 0 | AJ71: 23.22573115 | AK71: 0 | AL71: 232234.0858 | AM71: 1000000 | AN71: 0 | AO71: 1000000 | AP71: 1000000 | AQ71: 1579.28538 | AR71: 0 | AS71: 1000000 | AT71: 1579.28538
A72: 60 | B72: 329252.6758 | C72: 11600.13079 | E72: 0.0845 | F72: 0.0001 | G72: 0.0001 | I72: 0.08045977011 | J72: 0.1470120671 | K72: 52644.74114 | L72: 1854.763613 | N72: 60 | O72: 232234.0858 | P72: 96.7642024 | Q72: 96.7642024 | R72: 0 | S72: 1757.999411 | T72: 580.5852144 | U72: 1757.999411 | V72: 580.5852144 | W72: 0 | X72: 1177.414196 | Y72: 52644.74114 | Z72: 14449.71738 | AA72: 67094.45853 | AB72: 165139.6272 | AC72: 16.51396272 | AD72: 1177.414196 | AE72: 16.51396272 | AF72: 1160.900233 | AG72: 0 | AH72: 1000000 | AI72: 0 | AJ72: 16.51396272 | AK72: 0 | AL72: 165123.1133 | AM72: 1000000 | AN72: 0 | AO72: 1000000 | AP72: 1000000 | AQ72: 1160.900233 | AR72: 0 | AS72: 1000000 | AT72: 1160.900233
A73: 61 | B73: 271624.1153 | C73: 8959.798148 | I73: 0.0875 | J73: 0.1341485112 | K73: 39932.02267 | L73: 1317.198447 | N73: 61 | O73: 165123.1133 | P73: 68.8012972 | Q73: 68.8012972 | R73: 0 | S73: 1248.39715 | T73: 412.8077832 | U73: 1248.39715 | V73: 412.8077832 | W73: 0 | X73: 835.5893664 | Y73: 39932.02267 | Z73: 10954.22043 | AA73: 50886.2431 | AB73: 114236.8702 | AC73: 0 | AD73: 835.5893664 | AE73: 0 | AF73: 835.5893664 | AG73: 0 | AH73: 1000000 | AI73: 0 | AJ73: 0 | AK73: 0 | AL73: 114236.8702 | AM73: 1000000 | AN73: 0 | AO73: 1000000 | AP73: 1000000 | AQ73: 835.5893664 | AR73: 0 | AS73: 1000000 | AT73: 835.5893664
A74: 62 | B74: 218758.1032 | C74: 6788.694986 | I74: 0.09589041096 | J74: 0.1212849554 | K74: 29346.07386 | L74: 910.6933256 | N74: 62 | O74: 114236.8702 | P74: 47.5986959 | Q74: 47.5986959 | R74: 0 | S74: 863.0946297 | T74: 285.5921754 | U74: 863.0946297 | V74: 285.5921754 | W74: 0 | X74: 577.5024543 | Y74: 29346.07386 | Z74: 8140.213344 | AA74: 37486.28721 | AB74: 76750.58296 | AC74: 0 | AD74: 577.5024543 | AE74: 0 | AF74: 577.5024543 | AG74: 0 | AH74: 1000000 | AI74: 0 | AJ74: 0 | AK74: 0 | AL74: 76750.58296 | AM74: 1000000 | AN74: 0 | AO74: 1000000 | AP74: 1000000 | AQ74: 577.5024543 | AR74: 0 | AS74: 1000000 | AT74: 577.5024543
A75: 63 | B75: 171441.894 | C75: 5042.275703 | I75: 0.1060606061 | J75: 0.1084213995 | K75: 20793.32246 | L75: 611.5521836 | N75: 63 | O75: 76750.58296 | P75: 31.97940957 | Q75: 31.97940957 | R75: 0 | S75: 579.5727741 | T75: 191.8764574 | U75: 579.5727741 | V75: 191.8764574 | W75: 0 | X75: 387.6963167 | Y75: 20793.32246 | Z75: 5934.860962 | AA75: 26728.18342 | AB75: 50022.39954 | AC75: 0 | AD75: 387.6963167 | AE75: 0 | AF75: 387.6963167 | AG75: 0 | AH75: 1000000 | AI75: 0 | AJ75: 0 | AK75: 0 | AL75: 50022.39954 | AM75: 1000000 | AN75: 0 | AO75: 1000000 | AP75: 1000000 | AQ75: 387.6963167 | AR75: 0 | AS75: 1000000 | AT75: 387.6963167
A76: 64 | B76: 132782.3011 | C76: 3677.874921 | I76: 0.1186440678 | J76: 0.09555784363 | K76: 14396.44291 | L76: 398.7603461 | N76: 64 | O76: 50022.39954 | P76: 20.84266647 | Q76: 20.84266647 | R76: 0 | S76: 377.9176796 | T76: 125.0559988 | U76: 377.9176796 | V76: 125.0559988 | W76: 0 | X76: 252.8616808 | Y76: 14396.44291 | Z76: 4226.808414 | AA76: 18623.25132 | AB76: 31399.14822 | AC76: 0 | AD76: 252.8616808 | AE76: 0 | AF76: 252.8616808 | AG76: 0 | AH76: 1000000 | AI76: 0 | AJ76: 0 | AK76: 0 | AL76: 31399.14822 | AM76: 1000000 | AN76: 0 | AO76: 1000000 | AP76: 1000000 | AQ76: 252.8616808 | AR76: 0 | AS76: 1000000 | AT76: 252.8616808
A77: 65 | B77: 108597.3338 | C77: 2617.679425 | I77: 0.1346153846 | J77: 0.08269428775 | K77: 10377.32704 | L77: 250.1398011 | N77: 65 | O77: 31399.14822 | P77: =O77*ServicingFee/12 -> 13.08297842 | Q77: 13.08297842 | R77: 0 | S77: 237.0568227 | T77: =O77*(Coupon/12) -> 78.49787054 | U77: 237.0568227 | V77: 78.49787054 | W77: 0 | X77: 158.5589522 | Y77: 10377.32704 | Z77: 2829.860542 | AA77: 13207.18759 | AB77: 18191.96063 | AC77: 0 | AD77: 158.5589522 | AE77: 0 | AF77: 158.5589522 | AG77: 0 | AH77: 1000000 | AI77: 0 | AJ77: =AC77-AK77 -> 0 | AK77: =AG77-AI77 -> 0 | AL77: 18191.96063 | AM77: 1000000 | AN77: 0 | AO77: 1000000 | AP77: 1000000 | AQ77: 158.5589522 | AR77: 0 | AS77: 1000000 | AT77: 158.5589522
A78: 66 | B78: 87528.07725 | C78: 1750.38816 | I78: 0.1555555556 | J78: =J77*(1-I78)*(1-G78) -> 0.06983073188 | K78: =B78*J77 -> 7238.072007 | L78: =C78*J77 -> 144.7471022 | N78: 66 | O78: 18191.96063 | P78: 7.579983596 | Q78: =MIN(P78,L78) -> 7.579983596 | R78: 0 | S78: =L78-Q78 -> 137.1671186 | T78: 45.47990158 | U78: =S78 -> 137.1671186 | V78: =MIN(T78,U78) -> 45.47990158 | W78: =T78-V78 -> 0 | X78: =MAX(0,U78-V78) -> 91.68721699 | Y78: =K78 -> 7238.072007 | Z78: =MAX(0,(O78-Y78)*I78) -> 1703.93823 | AA78: =Y78+Z78 -> 8942.010237 | AB78: =MAX(0,O78-AA78) -> 9249.950393 | AC78: =AB78*G78 -> 0 | AD78: =X78 -> 91.68721699 | AE78: =MIN(AC78,AD78) -> 0 | AF78: =AD78-AE78 -> 91.68721699 | AG78: =AC78-AE78 -> 0 | AH78: =AM78 -> 1000000 | AI78: =MIN(AG78,AH77) -> 0 | AJ78: 0 | AK78: 0 | AL78: =AB78-AJ78 -> 9249.950393 | AM78: 1000000 | AN78: =AI78 -> 0 | AO78: =AM78-AN78 -> 1000000 | AP78: =$O$4 -> 1000000 | AQ78: =AF78 -> 91.68721699 | AR78: =MIN(AP78-AO78,AQ78) -> 0 | AS78: =AO78+AR78 -> 1000000 | AT78: =AQ78-AR78 -> 91.68721699
A79: 67 | B79: 65120.98969 | C79: 1053.656448 | I79: =$R$3/(1-$R$3*(A79-1)) -> 0.1842105263 | J79: 0.05696717601 | K79: 4547.446371 | L79: 73.57760095 | N79: 67 | O79: =AL78 -> 9249.950393 | P79: 3.854145997 | Q79: 3.854145997 | R79: 0 | S79: 69.72345495 | T79: 23.12487598 | U79: 69.72345495 | V79: 23.12487598 | W79: 0 | X79: 46.59857897 | Y79: 4547.446371 | Z79: 866.250741 | AA79: 5413.697112 | AB79: 3836.253281 | AC79: 0 | AD79: 46.59857897 | AE79: 0 | AF79: 46.59857897 | AG79: 0 | AH79: 1000000 | AI79: 0 | AJ79: 0 | AK79: 0 | AL79: 3836.253281 | AM79: =AS78 -> 1000000 | AN79: 0 | AO79: 1000000 | AP79: 1000000 | AQ79: 46.59857897 | AR79: 0 | AS79: 1000000 | AT79: 46.59857897
A80: 68 | B80: 42627.81614 | C80: 535.1155219 | I80: 0.2258064516 | J80: 0.04410362014 | K80: 2428.386305 | L80: 30.48402012 | N80: 68 | O80: 3836.253281 | P80: 1.598438867 | Q80: 1.598438867 | R80: 0 | S80: 28.88558125 | T80: 9.590633204 | U80: 28.88558125 | V80: 9.590633204 | W80: =T80-V80 -> 0 | X80: 19.29494805 | Y80: 2428.386305 | Z80: 317.9054463 | AA80: 2746.291751 | AB80: 1089.96153 | AC80: 0 | AD80: 19.29494805 | AE80: 0 | AF80: 19.29494805 | AG80: 0 | AH80: 1000000 | AI80: 0 | AJ80: 0 | AK80: 0 | AL80: 1089.96153 | AM80: 1000000 | AN80: 0 | AO80: 1000000 | AP80: 1000000 | AQ80: 19.29494805 | AR80: 0 | AS80: 1000000 | AT80: 19.29494805
A81: 69 | B81: 20412.39748 | C81: 197.769897 | I81: 0.2916666667 | J81: 0.03124006426 | K81: 900.2606245 | L81: 8.722368413 | N81: 69 | O81: 1089.96153 | P81: 0.4541506376 | Q81: 0.4541506376 | R81: 0 | S81: 8.268217776 | T81: 2.724903825 | U81: 8.268217776 | V81: 2.724903825 | W81: 0 | X81: 5.54331395 | Y81: 900.2606245 | Z81: 55.32943081 | AA81: 955.5900553 | AB81: 134.3714748 | AC81: 0 | AD81: 5.54331395 | AE81: 0 | AF81: 5.54331395 | AG81: 0 | AH81: 1000000 | AI81: 0 | AJ81: 0 | AK81: 0 | AL81: 134.3714748 | AM81: 1000000 | AN81: 0 | AO81: 1000000 | AP81: 1000000 | AQ81: 5.54331395 | AR81: 0 | AS81: 1000000 | AT81: 5.54331395
A82: 70 | B82: 4301.344752 | C82: 35.33719503 | I82: 0.4117647059 | J82: 0.01837650839 | K82: 134.3742865 | L82: 1.103936244 | N82: 70 | O82: 134.3714748 | P82: 0.05598811451 | Q82: 0.05598811451 | R82: 0 | S82: 1.047948129 | T82: 0.3359286871 | U82: 1.047948129 | V82: 0.3359286871 | W82: 0 | X82: 0.712019442 | Y82: 134.3742865 | Z82: 0 | AA82: 134.3742865 | AB82: 0 | AC82: 0 | AD82: 0.712019442 | AE82: 0 | AF82: 0.712019442 | AG82: 0 | AH82: 1000000 | AI82: 0 | AJ82: 0 | AK82: 0 | AL82: 0 | AM82: 1000000 | AN82: 0 | AO82: 1000000 | AP82: 1000000 | AQ82: 0.712019442 | AR82: 0 | AS82: 1000000 | AT82: 0.712019442
